bitfinex-derivatives/quotes_SOLF0:USTF0_20260220
["timestamp","ask_amount","ask_price","bid_price","bid_amount"]
[1771610499746,15.55460406,84.304,84.255,10.685]
[1771610499947,15.55460406,84.304,84.244,15.60049795]
[1771610500257,15.55460406,84.321,84.261,15.72691243]
[1771610500853,15.55460406,84.321,84.27,10.683]
[1771610500854,10.6768,84.32,84.27,10.683]
[1771610501408,15.55460406,84.321,84.261,15.72691243]
[1771610503359,15.55460406,84.321,84.278,10.6821]
[1771610503656,15.55460406,84.321,84.261,15.72691243]
[1771610503857,9.63266361,84.34,84.25,9.63266361]
[1771610503858,10.6744,84.34,84.271,15.72691243]
[1771610504050,15.55460406,84.34,84.271,15.72691243]
[1771610504657,15.55460406,84.34,84.288,10.6807]
[1771610504858,15.55460406,84.34,84.287,15.72691243]
[1771610505055,15.55460406,84.358,84.287,15.72691243]
[1771610505256,15.55460406,84.379,84.291,15.72691243]
[1771610505957,10.6721,84.357,84.308,10.6782]
[1771610506159,15.55460406,84.356,84.308,10.6782]
[1771610506463,15.55460406,84.356,84.291,15.72691243]
[1771610506663,11.94538417,84.403,84.288,10.6808]
[1771610506664,15.55460406,84.337,84.288,10.6808]
[1771610507657,10.675,84.335,84.274,15.72691243]
[1771610507865,15.55460406,84.334,84.274,15.72691243]
[1771610508063,15.55460406,84.359,84.274,15.72691243]
[1771610508760,10.6745,84.339,84.286,10.681]
[1771610508967,15.55460406,84.338,84.274,15.72691243]
[1771610509461,15.55460406,84.325,84.274,15.72691243]
[1771610509765,15.55460406,84.325,84.251,15.72691243]
[1771610510565,15.55460406,84.325,84.283,10.6814]
[1771610511566,15.55460406,84.344,84.284,15.72691243]
[1771610512361,15.55460406,84.359,84.302,10.679]
[1771610512866,15.55460406,84.357,84.308,10.6782]
[1771610513671,10.6723,84.356,84.3,10.6792]
[1771610513967,15.55460406,84.357,84.284,15.72691243]
[1771610514363,10.674,84.343,84.299,10.6794]
[1771610514566,15.55460406,84.357,84.284,15.72691243]
[1771610515169,26.22770406,84.35,84.302,10.679]
[1771610515365,9.63266361,84.38,84.284,15.72691243]
[1771610515366,15.55460406,84.349,84.284,15.72691243]
[1771610515769,15.55460406,84.349,84.301,10.6792]
[1771610515959,15.55460406,84.349,84.284,15.72691243]
[1771610516264,15.55460406,84.348,84.294,10.68]
[1771610516570,15.55460406,84.348,84.284,15.72691243]
[1771610516775,26.22790406,84.348,84.3,10.6792]
[1771610517265,15.55460406,84.347,84.3,10.6792]
[1771610517663,26.22800406,84.347,84.3,10.6792]
[1771610517864,15.55460406,84.346,84.267,15.72691243]
[1771610518064,15.55460406,84.339,84.249,15.72691243]
[1771610518264,15.55460406,84.339,84.269,10.6832]
[1771610518464,15.55460406,84.339,84.261,15.72691243]
[1771610518874,10.6748,84.336,84.292,10.6803]
[1771610519362,15.55460406,84.359,84.284,15.72691243]
[1771610520772,10.6753,84.332,84.284,15.72691243]
[1771610521073,15.55460406,84.343,84.284,15.72691243]
[1771610521468,10.6749,84.335,84.288,10.6807]
[1771610522172,15.55460406,84.343,84.289,10.6806]
[1771610522376,15.55460406,84.343,84.268,15.72691243]
[1771610523169,15.55460406,84.328,84.273,10.6826]
[1771610524274,10.6778,84.313,84.273,10.6826]
[1771610524471,15.55460406,84.328,84.265,10.6837]
[1771610525875,15.55460406,84.308,84.25,15.72691243]
[1771610526180,15.55460406,84.308,84.214,14.22610512]
[1771610526181,15.55460406,84.308,84.234,15.72691243]
[1771610526468,14.58441541,84.299,84.234,15.72691243]
[1771610526673,10.6813,84.285,84.236,10.6874]
[1771610526980,14.58441541,84.299,84.234,15.72691243]
[1771610527166,14.96213979,84.316,84.246,14.93720338]
[1771610527677,14.96213979,84.305,84.248,14.93720338]
[1771610528075,14.96213979,84.305,84.231,14.93720338]
[1771610528875,14.96213979,84.301,84.231,14.93720338]
[1771610529072,14.96213979,84.319,84.241,14.93720338]
[1771610529576,14.96213979,84.319,84.243,14.93720338]
[1771610529979,14.96213979,84.319,84.244,14.93720338]
[1771610530365,14.96213979,84.319,84.262,14.93720338]
[1771610531679,14.96213979,84.317,84.263,10.6839]
[1771610532677,14.96213979,84.317,84.264,14.93720338]
[1771610533272,10.6782,84.309,84.264,14.93720338]
[1771610533474,10.6782,84.309,84.248,14.93720338]
[1771610533877,10.6782,84.309,84.245,10.69707208]
[1771610533878,14.96213979,84.317,84.271,10.6829]
[1771610534079,10.6764,84.323,84.272,14.93720338]
[1771610535382,10.6754,84.331,84.282,10.6815]
[1771610535578,25.63753979,84.331,84.282,10.6815]
[1771610535785,14.96213979,84.331,84.272,14.93720338]
[1771610535985,14.96213979,84.331,84.272,25.62000338]
[1771610536383,14.96213979,84.331,84.272,14.93720338]
[1771610537683,14.96213979,84.328,84.28,10.6818]
[1771610538280,14.96213979,84.305,84.261,10.6843]
[1771610540090,14.96213979,84.327,84.252,10.69707208]
[1771610540285,14.96213979,84.327,84.254,14.93720338]
[1771610540686,14.96213979,84.327,84.271,14.93720338]
[1771610541087,14.96213979,84.327,84.281,10.6816]
[1771610542587,14.96213979,84.327,84.274,10.6826]
[1771610542887,14.96213979,84.327,84.271,14.93720338]
[1771610543189,10.6767,84.321,84.28,10.6818]
[1771610543690,10.6767,84.321,84.271,14.93720338]
[1771610543992,14.96213979,84.327,84.271,14.93720338]
[1771610544389,10.677,84.318,84.273,10.6827]
[1771610545094,14.96213979,84.327,84.271,14.93720338]
[1771610546694,10.6774,84.316,84.272,10.6828]
[1771610546992,14.96213979,84.327,84.255,14.93720338]
[1771610547492,14.96213979,84.31,84.258,10.6846]
[1771610547693,14.96213979,84.31,84.255,14.93720338]
[1771610548293,14.96213979,84.31,84.27,10.6831]
[1771610548687,14.96213979,84.31,84.255,14.93720338]
[1771610548894,14.96213979,84.339,84.268,14.93720338]
[1771610549087,10.6762,84.325,84.282,10.6816]
[1771610549291,14.96213979,84.339,84.282,10.6816]
[1771610549992,10.6753,84.332,84.288,10.6808]
[1771610550394,10.6753,84.332,84.278,14.93720338]
[1771610550888,14.96213979,84.332,84.293,10.6802]
[1771610551094,10.6745,84.338,84.293,10.6802]
[1771610551498,14.96213979,84.348,84.285,14.93720338]
[1771610552692,14.96213979,84.348,84.284,10.77445717]
[1771610552693,14.96213979,84.348,84.305,10.6786]
[1771610552888,14.96213979,84.38,84.304,10.77445717]
[1771610553091,14.96213979,84.38,84.302,14.93720338]
[1771610553092,14.96213979,84.38,84.337,10.6746]
[1771610554491,14.96213979,84.38,84.329,10.6756]
[1771610557191,14.96213979,84.38,84.328,14.93720338]
[1771610557192,14.96213979,84.379,84.309,15.07552971]
[1771610557391,14.12912053,84.359,84.267,15.07552971]
[1771610557600,14.12912053,84.324,84.267,15.07552971]
[1771610558898,9.65080072,84.34,84.248,15.07552971]
[1771610558899,14.12912053,84.316,84.248,15.07552971]
[1771610559796,24.80742053,84.308,84.253,10.6852]
[1771610560701,14.12912053,84.326,84.262,15.07552971]
[1771610561792,10.6774,84.316,84.265,10.6837]
[1771610562002,10.6774,84.316,84.266,15.07552971]
[1771610562201,10.6774,84.316,84.267,10.6834]
[1771610562504,10.6774,84.316,84.25,9.65080072]
[1771610562505,14.12912053,84.315,84.251,15.07552971]
[1771610563505,14.12912053,84.332,84.267,15.07552971]
[1771610564496,10.6754,84.331,84.274,15.07552971]
[1771610564900,14.12912053,84.332,84.274,15.07552971]
[1771610565799,10.6755,84.331,84.276,10.6823]
[1771610565996,10.6755,84.331,84.274,15.07552971]
[1771610566196,14.12912053,84.332,84.274,15.07552971]
[1771610567709,14.12912053,84.332,84.283,10.6814]
[1771610568411,10.6744,84.339,84.29,25.75602971]
[1771610568809,14.12912053,84.348,84.298,10.6795]
[1771610569904,14.12912053,84.346,84.275,15.07552971]
[1771610571404,14.12912053,84.331,84.277,10.6822]
[1771610571608,14.12912053,84.359,84.278,15.07552971]
[1771610572009,14.12912053,84.359,84.279,15.07552971]
[1771610572816,10.6732,84.349,84.297,10.6796]
[1771610574117,10.674,84.343,84.297,10.6796]
[1771610574509,14.12912053,84.359,84.278,15.07552971]
[1771610575216,14.12912053,84.314,84.243,15.07552971]
[1771610575410,14.12912053,84.36,84.281,15.07552971]
[1771610575613,14.12912053,84.36,84.28,9.65080072]
[1771610575614,14.12912053,84.36,84.293,15.07552971]
[1771610576618,14.12912053,84.344,84.274,15.07552971]
[1771610577817,10.6751,84.334,84.285,10.6812]
[1771610578411,10.6751,84.334,84.245,14.22610512]
[1771610578412,14.12912053,84.369,84.293,15.07552971]
[1771610579815,10.6718,84.36,84.305,10.6786]
[1771610580617,10.6722,84.356,84.305,10.6786]
[1771610580817,14.12912053,84.359,84.293,25.75572971]
[1771610581015,14.12912053,84.395,84.311,15.07552971]
[1771610581224,14.12912053,84.385,84.311,15.07552971]
[1771610581915,14.12912053,84.381,84.311,15.07552971]
[1771610582921,14.12912053,84.38,84.311,15.07552971]
[1771610583424,14.12912053,84.38,84.276,35.66460428]
[1771610583425,14.12912053,84.379,84.317,15.07552971]
[1771610583924,14.12912053,84.379,84.319,15.07552971]
[1771610584314,14.12912053,84.409,84.319,15.07552971]
[1771610584518,10.6681,84.389,84.332,10.6752]
[1771610584820,14.12912053,84.388,84.319,15.07552971]
[1771610585627,14.12912053,84.41,84.331,15.07552971]
[1771610586322,13.95433649,84.443,84.331,15.07552971]
[1771610586528,13.95433649,84.443,84.371,13.80497164]
[1771610586923,13.95433649,84.442,84.374,13.80497164]
[1771610587129,14.47309036,84.479,84.374,13.80497164]
[1771610587424,14.47309036,84.479,84.391,13.72913924]
[1771610587627,14.47309036,84.474,84.396,13.72913924]
[1771610588430,14.47309036,84.449,84.377,13.72913924]
[1771610589230,14.47309036,84.437,84.377,13.72913924]
[1771610590628,14.47309036,84.434,84.377,13.72913924]
[1771610592232,14.47309036,84.434,84.378,10.6694]
[1771610592830,10.6625,84.433,84.378,10.6694]
[1771610593225,14.47309036,84.432,84.377,13.72913924]
[1771610593838,14.47309036,84.425,84.36,10.6717]
[1771610594142,14.47309036,84.442,84.361,13.72913924]
[1771610594342,14.47309036,84.472,84.411,13.72913924]
[1771610594935,14.47309036,84.472,84.413,13.72913924]
[1771610595335,14.47309036,84.472,84.416,10.6645]
[1771610595933,14.47309036,84.493,84.426,13.72913924]
[1771610597132,9.65080072,84.51,84.41,9.65080072]
[1771610597133,14.47309036,84.491,84.41,9.65080072]
[1771610597336,14.47309036,84.489,84.41,9.65080072]
[1771610597636,14.47309036,84.489,84.411,13.72913924]
[1771610598034,14.47309036,84.487,84.428,10.6631]
[1771610598739,10.656,84.485,84.417,10.6644]
[1771610598931,14.47309036,84.484,84.417,10.6644]
[1771610599332,10.6573,84.474,84.404,10.6661]
[1771610599534,14.47309036,84.473,84.404,10.6661]
[1771610600044,14.47309036,84.459,84.404,10.6661]
[1771610601548,14.47309036,84.479,84.414,13.72913924]
[1771610602649,10.6568,84.478,84.421,10.6639]
[1771610603044,14.47309036,84.479,84.421,10.6639]
[1771610603244,14.47309036,84.478,84.418,10.6643]
[1771610603640,14.47309036,84.478,84.397,13.72913924]
[1771610603841,21.3058,84.509,84.397,13.72913924]
[1771610603842,10.6608,84.447,84.397,13.72913924]
[1771610604045,14.47309036,84.452,84.397,13.72913924]
[1771610604445,25.13349036,84.45,84.397,13.72913924]
[1771610604645,14.47309036,84.449,84.397,13.72913924]
[1771610605447,10.6591,84.46,84.408,13.72913924]
[1771610605947,14.47309036,84.451,84.39,9.61796467]
[1771610606143,14.47309036,84.451,84.389,13.72913924]
[1771610606345,14.47309036,84.439,84.369,13.72913924]
[1771610606641,10.6645,84.417,84.369,13.72913924]
[1771610607048,10.6631,84.428,84.377,10.6695]
[1771610607244,10.6631,84.428,84.377,24.39863924]
[1771610607844,24.09105503,84.44,84.377,13.72913924]
[1771610608145,14.47309036,84.44,84.377,13.72913924]
[1771610608750,14.47309036,84.419,84.335,13.72913924]
[1771610609342,14.47309036,84.399,84.335,13.72913924]
[1771610609842,14.47309036,84.381,84.311,13.72913924]
[1771610610551,10.6693,84.379,84.325,10.6761]
[1771610610744,9.61796467,84.4,84.325,13.72913924]
[1771610610940,10.6678,84.391,84.343,10.6738]
[1771610611545,10.6678,84.391,84.341,13.72913924]
[1771610611752,14.47309036,84.399,84.324,13.72913924]
[1771610613242,10.6695,84.378,84.326,10.676]
[1771610613447,14.47309036,84.377,84.326,10.676]
[1771610613653,14.47309036,84.377,84.307,13.72913924]
[1771610614052,10.6709,84.367,84.315,10.6774]
[1771610614653,10.6698,84.375,84.322,10.6764]
[1771610614945,14.47309036,84.377,84.311,13.72913924]
[1771610615344,10.6676,84.393,84.34,24.40333924]
[1771610616444,14.47309036,84.43,84.366,13.72913924]
[1771610617252,9.61796467,84.46,84.39,10.6678]
[1771610617253,10.6615,84.441,84.39,10.6678]
[1771610617453,13.18205371,84.447,84.384,13.26133019]
[1771610618044,13.18205371,84.447,84.37,9.61796467]
[1771610618248,13.18205371,84.447,84.371,13.26133019]
[1771610619652,10.6621,84.437,84.387,10.6682]
[1771610619856,13.18205371,84.436,84.371,13.26133019]
[1771610620660,10.6639,84.422,84.371,13.26133019]
[1771610621056,10.6639,84.422,84.373,10.67]
[1771610621254,10.6645,84.418,84.373,10.67]
[1771610622154,10.6645,84.418,84.365,10.671]
[1771610622855,13.18205371,84.439,84.366,13.26133019]
[1771610623256,13.18205371,84.417,84.366,13.26133019]
[1771610623456,13.18205371,84.409,84.366,13.26133019]
[1771610623655,13.18205371,84.427,84.366,13.26133019]
[1771610623851,13.18205371,84.427,84.37,10.6704]
[1771610624050,21.3147,84.474,84.366,13.26133019]
[1771610624051,13.18205371,84.426,84.366,13.26133019]
[1771610625051,10.6643,84.419,84.367,10.6708]
[1771610625653,13.18205371,84.418,84.367,10.6708]
[1771610625850,13.18205371,84.413,84.356,10.6722]
[1771610626261,13.18205371,84.413,84.348,13.26133019]
[1771610626462,13.18205371,84.413,84.362,10.6714]
[1771610627062,10.6631,84.428,84.348,13.26133019]
[1771610627262,13.18205371,84.431,84.361,13.26133019]
[1771610627764,13.18205371,84.431,84.386,10.6684]
[1771610628161,13.18205371,84.431,84.361,13.26133019]
[1771610628464,13.18205371,84.429,84.361,13.26133019]
[1771610628664,23.84705371,84.414,84.361,23.93283019]
[1771610629463,13.18205371,84.429,84.342,13.26133019]
[1771610630362,13.18205371,84.429,84.362,13.26133019]
[1771610630755,13.18205371,84.429,84.377,10.6695]
[1771610630960,13.18205371,84.429,84.377,23.93083019]
[1771610632469,13.18205371,84.446,84.388,13.26133019]
[1771610632972,10.6613,84.443,84.394,10.6673]
[1771610633469,13.18205371,84.446,84.394,10.6673]
[1771610634363,13.18205371,84.463,84.403,23.92753019]
[1771610634571,13.18205371,84.463,84.404,13.26133019]
[1771610634965,10.6584,84.466,84.414,13.26133019]
[1771610635165,13.18205371,84.48,84.414,13.26133019]
[1771610635967,13.18205371,84.475,84.415,10.6647]
[1771610637369,10.6587,84.463,84.414,13.26133019]
[1771610638767,10.6587,84.463,84.414,23.92613019]
[1771610639371,10.6587,84.463,84.416,10.6646]
[1771610639566,10.6587,84.463,84.4,9.61796467]
[1771610639567,23.83935371,84.475,84.417,13.26133019]
[1771610640267,10.6581,84.468,84.423,13.26133019]
[1771610640477,13.18205371,84.475,84.423,13.26133019]
[1771610640773,10.656,84.485,84.433,13.26133019]
[1771610640968,13.18205371,84.493,84.433,13.26133019]
[1771610641672,13.18205371,84.479,84.414,13.26133019]
[1771610642072,10.6569,84.478,84.425,13.26133019]
[1771610642277,13.18205371,84.501,84.425,13.26133019]
[1771610642572,10.97905936,84.553,84.425,13.26133019]
[1771610642573,13.18205371,84.539,84.467,13.26133019]
[1771610643773,10.6495,84.536,84.482,10.6563]
[1771610644080,13.18205371,84.535,84.467,13.26133019]
[1771610644872,13.18205371,84.515,84.441,13.26133019]
[1771610645270,13.18205371,84.533,84.46,13.26133019]
[1771610646680,13.18205371,84.529,84.443,13.26133019]
[1771610647175,10.6527,84.511,84.461,10.6588]
[1771610647375,12.09917151,84.511,84.443,13.26133019]
[1771610648281,12.09917151,84.511,84.425,13.38947711]
[1771610648282,9.61796467,84.51,84.425,13.38947711]
[1771610648475,12.09917151,84.509,84.425,13.38947711]
[1771610648879,12.09917151,84.485,84.425,13.38947711]
[1771610649282,12.09917151,84.485,84.4,9.61796467]
[1771610649484,12.09917151,84.467,84.381,13.38947711]
[1771610649884,10.6593,84.459,84.406,10.6659]
[1771610650080,12.09917151,84.467,84.406,24.05537711]
[1771610650684,10.94298563,84.546,84.407,13.38947711]
[1771610650685,10.657,84.477,84.407,13.38947711]
[1771610651081,21.3018,84.526,84.407,13.38947711]
[1771610651384,36.42613685,84.569,84.48,9.61796467]
[1771610651581,10.6465,84.56,84.48,9.61796467]
[1771610651786,36.42613685,84.559,84.48,9.61796467]
[1771610652384,10.647,84.556,84.507,10.6531]
[1771610652881,36.42607523,84.547,84.489,10.6554]
[1771610656386,36.42607523,84.547,84.48,9.61796467]
[1771610656983,36.42607523,84.547,84.505,10.6533]
[1771610657186,36.42607523,84.547,84.48,9.61796467]
[1771610657888,36.42607523,84.547,84.496,10.6545]
[1771610658391,36.42607523,84.547,84.505,10.6533]
[1771610658585,36.20066173,84.569,84.505,10.6533]
[1771610658779,36.20066173,84.569,84.5,9.61796467]
[1771610659289,36.20066173,84.569,84.52,10.6514]
[1771610659487,36.20066173,84.569,84.5,9.61796467]
[1771610659488,36.20510036,84.609,84.5,9.61796467]
[1771610659679,36.20510036,84.609,84.52,9.61796467]
[1771610659882,9.61796467,84.61,84.52,9.61796467]
[1771610659883,36.20510036,84.588,84.52,9.61796467]
[1771610661485,36.20510036,84.588,84.535,10.6495]
[1771610661885,36.20510036,84.588,84.447,165.8331]
[1771610661886,36.20510036,84.588,84.49,9.61796467]
[1771610662088,36.34994562,84.63,84.51,9.61796467]
[1771610662289,9.61796467,84.6,84.51,9.61796467]
[1771610662486,36.34994562,84.599,84.51,9.61796467]
[1771610663198,36.34994562,84.599,84.53,9.61796467]
[1771610663394,36.27341064,84.63,84.55,9.61796467]
[1771610663588,36.27341064,84.625,84.55,9.61796467]
[1771610664093,21.2625,84.682,84.55,9.61796467]
[1771610664094,36.27341064,84.644,84.588,10.6429]
[1771610664299,11.78324596,84.671,84.61,9.61796467]
[1771610664595,9.61796467,84.69,84.61,9.61796467]
[1771610664793,9.61796467,84.69,84.59,9.61796467]
[1771610665385,10.6334,84.664,84.596,10.6418]
[1771610665989,10.6322,84.674,84.605,10.6407]
[1771610666184,24.99419708,84.689,84.605,10.6407]
[1771610667196,25.12176509,84.664,84.605,10.6407]
[1771610667894,25.12176509,84.664,84.556,21.2939]
[1771610667895,25.12176509,84.658,84.595,10.642]
[1771610668488,25.12176509,84.658,84.54,9.57380619]
[1771610668489,25.12150555,84.643,84.582,10.6436]
[1771610668695,25.12150555,84.639,84.56,9.57380619]
[1771610668899,25.12150555,84.639,84.54,9.57380619]
[1771610669292,25.25391548,84.607,84.547,10.6481]
[1771610671300,25.32959226,84.599,84.5,9.57380619]
[1771610672094,25.32959226,84.599,84.52,9.57380619]
[1771610673096,25.32959226,84.599,84.548,10.6479]
[1771610673300,25.32959226,84.599,84.52,9.57380619]
[1771610673702,9.57380619,84.61,84.52,9.57380619]
[1771610673703,25.42644446,84.639,84.54,9.57380619]
[1771610674696,25.42650384,84.62,84.54,9.57380619]
[1771610674900,25.42650384,84.62,84.56,9.57380619]
[1771610675602,24.73637385,84.618,84.53,9.57380619]
[1771610675796,24.73637385,84.618,84.531,8.61566766]
[1771610676102,24.73637385,84.618,84.557,10.6467]
[1771610677200,24.75366846,84.601,84.502,35.49]
[1771610677502,24.75366846,84.601,84.53,9.57380619]
[1771610677706,24.75366846,84.601,84.504,35.49]
[1771610677707,24.75366846,84.601,84.51,9.57380619]
[1771610677899,24.75366846,84.601,84.511,8.65094926]
[1771610678097,24.75366846,84.601,84.512,8.65094926]
[1771610678296,24.75274311,84.582,84.51,9.57380619]
[1771610678803,24.75274311,84.581,84.51,9.57380619]
[1771610679105,24.68091304,84.609,84.511,8.65975619]
[1771610679305,24.68091304,84.609,84.512,8.65975619]
[1771610679504,24.68091304,84.609,84.513,8.65975619]
[1771610679700,24.68091304,84.609,84.55,10.6477]
[1771610679701,10.641,84.604,84.55,10.6477]
[1771610679912,24.68091304,84.627,84.53,9.57380619]
[1771610680204,24.68091304,84.627,84.55,9.57380619]
[1771610680506,10.6385,84.624,84.57,10.6452]
[1771610681000,10.6383,84.625,84.577,10.6442]
[1771610681606,10.6383,84.625,84.568,10.6454]
[1771610682103,10.6383,84.625,84.575,10.6445]
[1771610682306,10.6383,84.625,84.55,9.57380619]
[1771610682506,10.6383,84.625,84.551,8.66230491]
[1771610682804,10.6383,84.625,84.552,8.66230491]
[1771610683004,10.6383,84.625,84.574,10.6447]
[1771610683202,24.68091304,84.627,84.574,10.6447]
[1771610683604,24.68091304,84.627,84.59,10.6426]
[1771610683797,10.6351,84.651,84.59,10.6426]
[1771610684200,10.6351,84.651,84.57,9.57380619]
[1771610684400,35.143657,84.651,84.571,8.6686111]
[1771610684602,24.508557,84.65,84.572,8.6686111]
[1771610684807,10.6355,84.647,84.597,10.6417]
[1771610685007,35.144057,84.647,84.597,10.6417]
[1771610685310,24.68248119,84.646,84.597,10.6417]
[1771610687010,10.6358,84.645,84.597,10.6417]
[1771610687406,10.6358,84.645,84.55,45.06380619]
[1771610687407,24.68984932,84.639,84.55,9.57380619]
[1771610687604,9.57380619,84.66,84.53,9.57380619]
[1771610687605,24.68984932,84.6,84.53,9.57380619]
[1771610687806,165.402,84.668,84.53,9.57380619]
[1771610687807,24.68984932,84.619,84.531,19.04269021]
[1771610688209,24.68984932,84.619,84.532,19.04269021]
[1771610688410,24.68984932,84.619,84.533,19.04269021]
[1771610688610,24.68984932,84.619,84.534,8.6882109]
[1771610688814,24.68929713,84.613,84.562,10.6461]
[1771610689613,24.63009535,84.61,84.562,10.6461]
[1771610690516,24.62950715,84.608,84.554,10.6471]
[1771610690715,24.62950715,84.608,84.532,10.35447931]
[1771610690919,24.62950715,84.608,84.533,19.07113907]
[1771610691120,10.6406,84.607,84.556,10.6469]
[1771610691321,24.67352524,84.606,84.532,10.35447931]
[1771610691518,24.67352524,84.606,84.533,8.7200865]
[1771610691717,24.67352524,84.606,84.534,8.7200865]
[1771610691915,24.67352524,84.606,84.535,8.7200865]
[1771610692111,24.67352524,84.606,84.536,8.7200865]
[1771610692423,24.67352524,84.606,84.537,8.7200865]
[1771610692611,24.67352524,84.606,84.538,8.7200865]
[1771610692811,21.2717,84.645,84.538,8.7200865]
[1771610692812,35.31608364,84.587,84.539,8.7200865]
[1771610693116,24.67298364,84.586,84.506,10.35447931]
[1771610693414,24.67298364,84.586,84.543,10.6486]
[1771610693715,10.6426,84.591,84.52,9.57380619]
[1771610693716,20.31357938,84.605,84.522,10.35447931]
[1771610693920,10.6428,84.59,84.54,10.6489]
[1771610694116,10.6428,84.59,84.52,9.57380619]
[1771610694117,10.6428,84.59,84.527,10.35447931]
[1771610694321,10.6428,84.59,84.526,10.35447931]
[1771610694519,10.6428,84.59,84.527,10.35447931]
[1771610695218,20.6365185,84.587,84.539,10.6491]
[1771610695616,20.6365185,84.587,84.532,10.35447931]
[1771610695816,20.6365185,84.587,84.527,10.35447931]
[1771610696217,20.6365185,84.587,84.534,10.35447931]
[1771610696416,20.63615617,84.609,84.547,10.35447931]
[1771610696622,20.63615617,84.609,84.545,10.35447931]
[1771610696922,20.63615617,84.609,84.553,10.35447931]
[1771610697124,31.31286587,84.606,84.553,10.35447931]
[1771610697423,20.67206587,84.605,84.552,10.35447931]
[1771610697628,20.67206587,84.605,84.549,10.35447931]
[1771610697826,10.6411,84.603,84.549,10.35447931]
[1771610698133,10.6411,84.603,84.548,10.648]
[1771610698134,20.67206587,84.602,84.539,10.35447931]
[1771610698334,20.67174593,84.599,84.537,10.35447931]
[1771610698537,20.67174593,84.583,84.531,10.35447931]
[1771610699033,20.67174593,84.583,84.53,10.35447931]
[1771610699233,20.63990941,84.58,84.532,10.6499]
[1771610699834,9.57380619,84.6,84.524,10.651]
[1771610699835,20.63990941,84.575,84.524,10.651]
[1771610700133,20.63990941,84.575,84.527,10.35447931]
[1771610700334,20.63990941,84.575,84.528,10.35447931]
[1771610700534,20.63990941,84.575,84.529,10.35447931]
[1771610700733,20.63956739,84.592,84.532,10.35447931]
[1771610701043,20.63956739,84.592,84.536,10.54895602]
[1771610701243,20.63956739,84.592,84.535,10.54895602]
[1771610701538,20.56441646,84.59,84.54,10.54895602]
[1771610702230,20.56441646,84.59,84.549,10.54895602]
[1771610702430,20.56441646,84.59,84.55,10.54895602]
[1771610702634,20.56441646,84.59,84.542,10.54895602]
[1771610703438,20.56441646,84.59,84.518,10.54895602]
[1771610703739,31.20721646,84.59,84.543,10.6486]
[1771610703940,20.70047746,84.589,84.543,10.6486]
[1771610704336,20.7002063,84.587,84.543,10.6486]
[1771610704935,20.7002063,84.63,84.57,9.57380619]
[1771610705634,20.7002063,84.63,84.584,10.6434]
[1771610705839,20.7002063,84.63,84.57,9.57380619]
[1771610706237,20.71319624,84.648,84.57,9.57380619]
[1771610706437,20.71319624,84.648,84.571,10.54895602]
[1771610706838,20.71319624,84.637,84.581,10.6438]
[1771610707038,20.71319624,84.637,84.57,9.57380619]
[1771610707639,30.90402048,84.636,84.589,10.6428]
[1771610707841,20.26702048,84.635,84.557,10.54895602]
[1771610708043,20.26702048,84.635,84.551,10.54895602]
[1771610708343,20.26633795,84.616,84.55,9.57380619]
[1771610708550,20.26633795,84.616,84.516,21.3039]
[1771610708551,20.26633795,84.616,84.533,10.54895602]
[1771610708741,20.26633795,84.589,84.537,10.6493]
[1771610708937,20.26633795,84.589,84.514,10.54895602]
[1771610709142,20.26633795,84.589,84.513,10.54895602]
[1771610709344,20.37309666,84.587,84.536,10.6495]
[1771610709546,20.37309666,84.587,84.525,10.54895602]
[1771610709746,20.37309666,84.587,84.518,10.54895602]
[1771610709946,20.37309666,84.587,84.519,10.54895602]
[1771610710146,20.37309666,84.587,84.518,10.54895602]
[1771610710344,20.37258613,84.617,84.53,10.54895602]
[1771610710642,14.65300787,84.665,84.51,9.57380619]
[1771610710643,20.37258613,84.659,84.57,9.57380619]
[1771610710842,20.37258613,84.659,84.572,10.54895602]
[1771610711452,19.62594696,84.652,84.588,10.6429]
[1771610712047,19.62594696,84.652,84.57,20.12276221]
[1771610712242,19.62594696,84.652,84.578,10.54895602]
[1771610712442,19.62594696,84.652,84.57,20.12276221]
[1771610713051,19.62594696,84.652,84.57,9.57380619]
[1771610713353,19.62594696,84.652,84.571,10.54895602]
[1771610713753,19.84920868,84.651,84.59,9.57380619]
[1771610714549,19.84920868,84.651,84.576,10.54895602]
[1771610714855,19.84920868,84.651,84.57,20.12276221]
[1771610715246,19.88808182,84.639,84.581,10.6438]
[1771610715449,19.88808182,84.639,84.57,20.12276221]
[1771610715646,6.297e-05,84.665,84.59,9.57380619]
[1771610716046,19.88724262,84.661,84.59,9.57380619]
[1771610716246,19.88724262,84.659,84.57,9.57380619]
[1771610716746,10.6361,84.643,84.581,10.6438]
[1771610716951,9.57380619,84.66,84.57,9.57380619]
[1771610716952,19.88724262,84.642,84.57,9.57380619]